[Event "Titled Tuesday Blitz May 23 Early 2023"]
[White "Tokman, Ariel"]
[Black "Harsh Suresh"]
[WhiteFideId "117420"]
[BlackFideId "45018464"]
[WhiteElo "2263"]
[BlackElo "2209"]
[Result "0-1"]
[Round "11"]
[TimeControl "180+2"]
[Date "2023.05.23"]
[WhiteClock "0:00:02"]
[BlackClock "0:00:19"]

1. c4 {[%clk 0:03:00]}  e5 {[%clk 0:02:58]} 2. g3 {[%clk 0:03:00]}  Nf6 {[%clk 0:02:58]} 3. Bg2 {[%clk 0:03:00]}  Be7 {[%clk 0:02:58]} 4. Nc3 {[%clk 0:02:59]}  O-O {[%clk 0:02:58]} 5. Nf3 {[%clk 0:03:00]}  d6 {[%clk 0:02:57]} 6. d3 {[%clk 0:02:58]}  c6 {[%clk 0:02:57]} 7. O-O {[%clk 0:02:58]}  Re8 {[%clk 0:02:54]} 8. Rb1 {[%clk 0:02:58]}  a5 {[%clk 0:02:54]} 9. a3 {[%clk 0:02:58]}  h6 {[%clk 0:02:53]} 10. b4 {[%clk 0:02:59]}  axb4 {[%clk 0:02:53]} 11. axb4 {[%clk 0:02:59]}  Bf5 {[%clk 0:02:53]} 12. Qc2 {[%clk 0:02:57]}  Nbd7 {[%clk 0:02:51]} 13. e4 {[%clk 0:02:55]}  Be6 {[%clk 0:02:50]} 14. h3 {[%clk 0:02:54]}  d5 {[%clk 0:02:46]} 15. cxd5 {[%clk 0:02:38]}  cxd5 {[%clk 0:02:47]} 16. exd5 {[%clk 0:02:38]}  Nxd5 {[%clk 0:02:48]} 17. Nxd5 {[%clk 0:02:39]}  Bxd5 {[%clk 0:02:49]} 18. Be3 {[%clk 0:02:38]}  Bd6 {[%clk 0:02:38]} 19. Rfe1 {[%clk 0:02:34]}  Qe7 {[%clk 0:02:20]} 20. Qd2 {[%clk 0:02:25]}  Ra2 {[%clk 0:02:15]} 21. Rb2 {[%clk 0:02:16]}  Rxb2 {[%clk 0:02:11]} 22. Qxb2 {[%clk 0:02:17]}  Bxb4 {[%clk 0:02:11]} 23. Rb1 {[%clk 0:02:17]}  Ba3 {[%clk 0:02:01]} 24. Qb5 {[%clk 0:02:07]}  Bc6 {[%clk 0:01:58]} 25. Qb3 {[%clk 0:02:07]}  Bc5 {[%clk 0:01:56]} 26. Re1 {[%clk 0:01:47]}  Bxe3 {[%clk 0:01:33]} 27. Rxe3 {[%clk 0:01:48]}  Qe6 {[%clk 0:01:29]} 28. Qb2 {[%clk 0:01:41]}  Qd6 {[%clk 0:01:24]} 29. Qe2 {[%clk 0:01:06]}  b5 {[%clk 0:00:48]} 30. Qb2 {[%clk 0:01:03]}  b4 {[%clk 0:00:37]} 31. d4 {[%clk 0:00:55]}  e4 {[%clk 0:00:37]} 32. Nd2 {[%clk 0:00:56]}  f5 {[%clk 0:00:37]} 33. Nc4 {[%clk 0:00:52]}  Qf8 {[%clk 0:00:33]} 34. Rb3 {[%clk 0:00:50]}  Rb8 {[%clk 0:00:30]} 35. Bf1 {[%clk 0:00:27]}  Bd5 {[%clk 0:00:31]} 36. Re3 {[%clk 0:00:19]}  Qf7 {[%clk 0:00:20]} 37. Nd6 {[%clk 0:00:02]}  Qe6 {[%clk 0:00:19]} 0-1


[Site "https://www.chess.com"]

[Event "Titled Tuesday Blitz May 23 Early 2023"]
[White "Radzhabov, Rodion"]
[Black "Shukhman, Anna"]
[WhiteFideId "884715"]
[BlackFideId "54180058"]
[WhiteElo "2215"]
[BlackElo "2235"]
[Result "1-0"]
[Round "11"]
[TimeControl "180+2"]
[Date "2023.05.23"]
[WhiteClock "0:00:17"]
[BlackClock "0:00:00"]

1. e4 {[%clk 0:03:00]}  c5 {[%clk 0:02:59]} 2. Nf3 {[%clk 0:03:00]}  a6 {[%clk 0:02:59]} 3. c3 {[%clk 0:03:00]}  d5 {[%clk 0:02:57]} 4. exd5 {[%clk 0:02:59]}  Qxd5 {[%clk 0:02:58]} 5. d4 {[%clk 0:02:59]}  Nf6 {[%clk 0:02:58]} 6. Be3 {[%clk 0:02:57]}  cxd4 {[%clk 0:02:56]} 7. cxd4 {[%clk 0:02:58]}  e6 {[%clk 0:02:56]} 8. Nc3 {[%clk 0:02:58]}  Qd6 {[%clk 0:02:56]} 9. Be2 {[%clk 0:02:56]}  Nc6 {[%clk 0:02:56]} 10. O-O {[%clk 0:02:56]}  Be7 {[%clk 0:02:57]} 11. Qd2 {[%clk 0:02:50]}  O-O {[%clk 0:02:56]} 12. Bf4 {[%clk 0:02:51]}  Qd7 {[%clk 0:02:52]} 13. Rfd1 {[%clk 0:02:50]}  Rd8 {[%clk 0:02:51]} 14. Ne5 {[%clk 0:02:32]}  Nxe5 {[%clk 0:02:50]} 15. dxe5 {[%clk 0:02:32]}  Qxd2 {[%clk 0:02:38]} 16. Rxd2 {[%clk 0:02:32]}  Nd5 {[%clk 0:02:31]} 17. Rad1 {[%clk 0:02:18]}  g5 {[%clk 0:02:09]} 18. Bg3 {[%clk 0:01:45]}  b5 {[%clk 0:02:07]} 19. Nxd5 {[%clk 0:01:38]}  exd5 {[%clk 0:02:06]} 20. Bf3 {[%clk 0:01:15]}  Be6 {[%clk 0:02:04]} 21. Bxd5 {[%clk 0:01:08]}  Rac8 {[%clk 0:01:55]} 22. h3 {[%clk 0:00:55]}  Bxd5 {[%clk 0:01:52]} 23. Rxd5 {[%clk 0:00:55]}  Rxd5 {[%clk 0:01:51]} 24. Rxd5 {[%clk 0:00:56]}  Rc2 {[%clk 0:01:49]} 25. Rd7 {[%clk 0:00:48]}  Bc5 {[%clk 0:01:45]} 26. h4 {[%clk 0:00:31]}  g4 {[%clk 0:01:40]} 27. h5 {[%clk 0:00:31]}  h6 {[%clk 0:01:36]} 28. Bh4 {[%clk 0:00:26]}  g3 {[%clk 0:00:55]} 29. Rd8+ {[%clk 0:00:24]}  Kh7 {[%clk 0:00:50]} 30. Bxg3 {[%clk 0:00:21]}  Rxb2 {[%clk 0:00:45]} 31. Bh4 {[%clk 0:00:20]}  Bb6 {[%clk 0:00:14]} 32. Re8 {[%clk 0:00:17]}  Rb1+ {[%clk 0:00:09]} 33. Kh2 {[%clk 0:00:17]}  Bxf2 {[%clk 0:00:03]} 34. Bf6 {[%clk 0:00:16]}  Bg1+ {[%clk 0:00:00]} 35. Kh3 {[%clk 0:00:17]} 1-0


[Site "https://www.chess.com"]

[Event "Titled Tuesday Blitz May 23 Early 2023"]
[White "Belov, Alexei"]
[Black "Ambartsumova, Karina"]
[WhiteFideId "4128206"]
[BlackFideId "4166299"]
[WhiteElo "2507"]
[BlackElo "2240"]
[Result "1/2-1/2"]
[Round "11"]
[TimeControl "180+2"]
[Date "2023.05.23"]
[WhiteClock "0:00:53"]
[BlackClock "0:00:16"]

1. e4 {[%clk 0:03:00]}  e5 {[%clk 0:02:57]} 2. Nf3 {[%clk 0:03:00]}  Nc6 {[%clk 0:02:57]} 3. Bb5 {[%clk 0:03:00]}  Nf6 {[%clk 0:02:56]} 4. O-O {[%clk 0:03:00]}  Nxe4 {[%clk 0:02:55]} 5. d4 {[%clk 0:03:00]}  Nd6 {[%clk 0:02:54]} 6. Bxc6 {[%clk 0:03:01]}  dxc6 {[%clk 0:02:55]} 7. dxe5 {[%clk 0:03:01]}  Nf5 {[%clk 0:02:56]} 8. Qxd8+ {[%clk 0:03:02]}  Kxd8 {[%clk 0:02:57]} 9. Rd1+ {[%clk 0:03:02]}  Ke8 {[%clk 0:02:57]} 10. Nc3 {[%clk 0:03:03]}  h6 {[%clk 0:02:52]} 11. b3 {[%clk 0:03:02]}  Be7 {[%clk 0:02:49]} 12. h3 {[%clk 0:03:02]}  Be6 {[%clk 0:02:49]} 13. Bb2 {[%clk 0:03:01]}  Rd8 {[%clk 0:02:40]} 14. Ne2 {[%clk 0:03:01]}  h5 {[%clk 0:02:21]} 15. c4 {[%clk 0:02:57]}  g5 {[%clk 0:02:03]} 16. Ned4 {[%clk 0:02:49]}  g4 {[%clk 0:01:52]} 17. Nxe6 {[%clk 0:02:33]}  fxe6 {[%clk 0:01:53]} 18. hxg4 {[%clk 0:02:30]}  hxg4 {[%clk 0:01:52]} 19. Nd4 {[%clk 0:02:30]}  Nxd4 {[%clk 0:01:34]} 20. Bxd4 {[%clk 0:02:26]}  Kf7 {[%clk 0:01:18]} 21. a4 {[%clk 0:01:44]}  a6 {[%clk 0:01:14]} 22. Be3 {[%clk 0:01:14]}  Kg6 {[%clk 0:01:12]} 23. Kf1 {[%clk 0:01:05]}  Rh1+ {[%clk 0:01:01]} 24. Ke2 {[%clk 0:01:05]}  Rhxd1 {[%clk 0:01:01]} 25. Rxd1 {[%clk 0:01:04]}  Rxd1 {[%clk 0:01:02]} 26. Kxd1 {[%clk 0:01:04]}  Kf5 {[%clk 0:01:03]} 27. Ke2 {[%clk 0:01:02]}  Kxe5 {[%clk 0:00:56]} 28. f3 {[%clk 0:01:02]}  gxf3+ {[%clk 0:00:52]} 29. Kxf3 {[%clk 0:01:02]}  b5 {[%clk 0:00:41]} 30. g4 {[%clk 0:01:01]}  bxc4 {[%clk 0:00:26]} 31. bxc4 {[%clk 0:01:01]}  Bf8 {[%clk 0:00:20]} 32. Bf2 {[%clk 0:00:56]}  Bg7 {[%clk 0:00:16]} 33. Bg1 {[%clk 0:00:52]}  Bf8 {[%clk 0:00:15]} 34. Bf2 {[%clk 0:00:52]}  Bg7 {[%clk 0:00:15]} 35. Bg1 {[%clk 0:00:52]}  Bf8 {[%clk 0:00:16]} 36. Bf2 {[%clk 0:00:53]} 1/2-1/2


[Site "https://www.chess.com"]

[Event "Titled Tuesday Blitz May 23 Early 2023"]
[White "Nikologorskiy, Konstantin"]
[Black "Yurasova, Daria"]
[WhiteFideId "24111708"]
[BlackFideId "34146919"]
[WhiteElo "2273"]
[BlackElo "2109"]
[Result "0-1"]
[Round "11"]
[TimeControl "180+2"]
[Date "2023.05.23"]
[WhiteClock "0:00:03"]
[BlackClock "0:00:47"]

1. d4 {[%clk 0:03:00]}  d5 {[%clk 0:03:00]} 2. c4 {[%clk 0:03:01]}  dxc4 {[%clk 0:03:00]} 3. Nf3 {[%clk 0:03:00]}  Nf6 {[%clk 0:03:01]} 4. e3 {[%clk 0:03:00]}  e6 {[%clk 0:03:01]} 5. Bxc4 {[%clk 0:03:00]}  a6 {[%clk 0:03:02]} 6. a4 {[%clk 0:03:00]}  Nc6 {[%clk 0:03:00]} 7. O-O {[%clk 0:02:56]}  Be7 {[%clk 0:02:58]} 8. Nc3 {[%clk 0:02:56]}  Nb4 {[%clk 0:02:58]} 9. Qe2 {[%clk 0:02:56]}  O-O {[%clk 0:02:57]} 10. Rd1 {[%clk 0:02:56]}  b6 {[%clk 0:02:49]} 11. e4 {[%clk 0:02:52]}  Bb7 {[%clk 0:02:49]} 12. e5 {[%clk 0:02:34]}  Nfd5 {[%clk 0:02:49]} 13. Ne4 {[%clk 0:02:35]}  h6 {[%clk 0:02:32]} 14. h3 {[%clk 0:02:24]}  a5 {[%clk 0:02:19]} 15. Nh2 {[%clk 0:02:21]}  Ba6 {[%clk 0:02:13]} 16. Bxa6 {[%clk 0:02:20]}  Nxa6 {[%clk 0:02:14]} 17. Rd3 {[%clk 0:02:19]}  Kh7 {[%clk 0:02:12]} 18. Rg3 {[%clk 0:02:18]}  c5 {[%clk 0:02:12]} 19. Rxg7+ {[%clk 0:01:42]}  Kxg7 {[%clk 0:02:11]} 20. Qg4+ {[%clk 0:01:43]}  Kh7 {[%clk 0:02:05]} 21. Qh5 {[%clk 0:01:43]}  f5 {[%clk 0:01:51]} 22. Qxh6+ {[%clk 0:01:31]}  Kg8 {[%clk 0:01:51]} 23. Qg6+ {[%clk 0:01:32]}  Kh8 {[%clk 0:01:51]} 24. Qh6+ {[%clk 0:01:29]}  Kg8 {[%clk 0:01:51]} 25. Qxe6+ {[%clk 0:01:30]}  Rf7 {[%clk 0:01:51]} 26. Ng3 {[%clk 0:01:17]}  Nac7 {[%clk 0:01:37]} 27. Qg6+ {[%clk 0:00:56]}  Rg7 {[%clk 0:01:37]} 28. Qxf5 {[%clk 0:00:56]}  Qf8 {[%clk 0:01:37]} 29. Qh5 {[%clk 0:00:54]}  Qf7 {[%clk 0:01:36]} 30. Qe2 {[%clk 0:00:41]}  Ne6 {[%clk 0:01:27]} 31. Ng4 {[%clk 0:00:41]}  Nxd4 {[%clk 0:01:27]} 32. Qe4 {[%clk 0:00:27]}  Qe6 {[%clk 0:01:09]} 33. Nh6+ {[%clk 0:00:18]}  Kh8 {[%clk 0:01:09]} 34. Ra3 {[%clk 0:00:11]}  Rf8 {[%clk 0:01:05]} 35. Nh5 {[%clk 0:00:06]}  Qg6 {[%clk 0:00:51]} 36. Qxg6 {[%clk 0:00:02]}  Rxg6 {[%clk 0:00:52]} 37. Ng4 {[%clk 0:00:02]}  Ne2+ {[%clk 0:00:50]} 38. Kh2 {[%clk 0:00:01]}  Nxc1 {[%clk 0:00:51]} 39. Ra2 {[%clk 0:00:01]}  Nxa2 {[%clk 0:00:51]} 40. f3 {[%clk 0:00:02]}  Nab4 {[%clk 0:00:48]} 41. Kg3 {[%clk 0:00:02]}  Nd3 {[%clk 0:00:48]} 42. h4 {[%clk 0:00:03]}  Nxe5 {[%clk 0:00:48]} 43. Nf4 {[%clk 0:00:03]}  Nxf4 {[%clk 0:00:47]} 44. b4 {[%clk 0:00:04]}  Nxg4 {[%clk 0:00:47]} 45. bxc5 {[%clk 0:00:03]} 0-1


[Site "https://www.chess.com"]

[Event "Titled Tuesday Blitz May 23 Early 2023"]
[White "Jovic, Stanoje"]
[Black "Danielyan, Vahe"]
[WhiteFideId "905020"]
[BlackFideId "13304828"]
[WhiteElo "2236"]
[BlackElo "2423"]
[Result "1-0"]
[Round "11"]
[TimeControl "180+2"]
[Date "2023.05.23"]
[WhiteClock "0:00:16"]
[BlackClock "0:00:35"]

1. c4 {[%clk 0:03:00]}  e6 {[%clk 0:02:57]} 2. g3 {[%clk 0:03:00]}  d5 {[%clk 0:02:57]} 3. Bg2 {[%clk 0:03:01]}  Nf6 {[%clk 0:02:56]} 4. Nf3 {[%clk 0:03:01]}  d4 {[%clk 0:02:55]} 5. O-O {[%clk 0:03:01]}  c5 {[%clk 0:02:55]} 6. e3 {[%clk 0:02:57]}  Nc6 {[%clk 0:02:55]} 7. Re1 {[%clk 0:02:56]}  Be7 {[%clk 0:02:55]} 8. a3 {[%clk 0:02:54]}  a5 {[%clk 0:02:55]} 9. exd4 {[%clk 0:02:53]}  cxd4 {[%clk 0:02:55]} 10. d3 {[%clk 0:02:53]}  O-O {[%clk 0:02:56]} 11. b3 {[%clk 0:02:50]}  Nd7 {[%clk 0:02:55]} 12. Bf4 {[%clk 0:02:40]}  Nc5 {[%clk 0:02:55]} 13. Qc2 {[%clk 0:02:27]}  a4 {[%clk 0:02:51]} 14. b4 {[%clk 0:02:23]}  Nb3 {[%clk 0:02:51]} 15. Ra2 {[%clk 0:02:17]}  f6 {[%clk 0:02:48]} 16. Bc1 {[%clk 0:01:56]}  e5 {[%clk 0:02:42]} 17. Nbd2 {[%clk 0:01:53]}  Bf5 {[%clk 0:02:34]} 18. Nxb3 {[%clk 0:01:49]}  axb3 {[%clk 0:02:35]} 19. Qxb3 {[%clk 0:01:49]}  Kh8 {[%clk 0:02:29]} 20. h3 {[%clk 0:01:46]}  Bxd3 {[%clk 0:02:27]} 21. Qxd3 {[%clk 0:01:43]}  Nxb4 {[%clk 0:02:27]} 22. axb4 {[%clk 0:01:40]}  Rxa2 {[%clk 0:02:28]} 23. c5 {[%clk 0:01:37]}  b6 {[%clk 0:02:27]} 24. Qb3 {[%clk 0:01:26]}  Ra1 {[%clk 0:02:22]} 25. c6 {[%clk 0:01:24]}  b5 {[%clk 0:02:21]} 26. Bb2 {[%clk 0:01:15]}  Rxe1+ {[%clk 0:02:18]} 27. Nxe1 {[%clk 0:01:15]}  f5 {[%clk 0:02:19]} 28. Nd3 {[%clk 0:01:14]}  e4 {[%clk 0:02:19]} 29. Ne5 {[%clk 0:01:13]}  d3 {[%clk 0:02:17]} 30. Nf7+ {[%clk 0:01:10]}  Rxf7 {[%clk 0:02:17]} 31. Qxf7 {[%clk 0:01:10]}  Bf8 {[%clk 0:01:59]} 32. c7 {[%clk 0:00:52]}  Qc8 {[%clk 0:01:58]} 33. Be5 {[%clk 0:00:48]}  d2 {[%clk 0:01:53]} 34. Qd5 {[%clk 0:00:46]}  h5 {[%clk 0:01:09]} 35. Qxd2 {[%clk 0:00:41]}  Be7 {[%clk 0:01:09]} 36. Qe2 {[%clk 0:00:33]}  Qe8 {[%clk 0:01:03]} 37. Bf1 {[%clk 0:00:27]}  e3 {[%clk 0:00:57]} 38. Qxe3 {[%clk 0:00:23]}  f4 {[%clk 0:00:57]} 39. Qxf4 {[%clk 0:00:21]}  Kg8 {[%clk 0:00:50]} 40. Bxb5 {[%clk 0:00:19]}  Qxb5 {[%clk 0:00:35]} 41. c8=Q+ {[%clk 0:00:16]} 1-0


[Site "https://www.chess.com"]

[Event "Titled Tuesday Blitz May 23 Early 2023"]
[White "Manukyan, Artyom"]
[Black "Manukian, Artak"]
[WhiteFideId "13305786"]
[BlackFideId "13301373"]
[WhiteElo "2078"]
[BlackElo "2130"]
[Result "1-0"]
[Round "11"]
[TimeControl "180+2"]
[Date "2023.05.23"]
[WhiteClock "0:01:28"]
[BlackClock "0:00:12"]

1. Nf3 {[%clk 0:03:00]}  g6 {[%clk 0:02:33]} 2. g3 {[%clk 0:03:00]}  Bg7 {[%clk 0:02:34]} 3. Bg2 {[%clk 0:03:00]}  Nf6 {[%clk 0:02:32]} 4. O-O {[%clk 0:03:01]}  O-O {[%clk 0:02:32]} 5. c4 {[%clk 0:03:02]}  c5 {[%clk 0:02:32]} 6. Nc3 {[%clk 0:03:02]}  Nc6 {[%clk 0:02:31]} 7. d4 {[%clk 0:03:02]}  cxd4 {[%clk 0:02:31]} 8. Nxd4 {[%clk 0:03:03]}  d6 {[%clk 0:02:29]} 9. Nxc6 {[%clk 0:03:03]}  bxc6 {[%clk 0:02:29]} 10. Bxc6 {[%clk 0:03:03]}  Bh3 {[%clk 0:02:29]} 11. Bxa8 {[%clk 0:03:02]}  Qxa8 {[%clk 0:02:28]} 12. f3 {[%clk 0:03:03]}  Bxf1 {[%clk 0:02:26]} 13. Kxf1 {[%clk 0:03:04]}  Ng4 {[%clk 0:02:18]} 14. fxg4 {[%clk 0:02:49]}  Qh1+ {[%clk 0:02:16]} 15. Kf2 {[%clk 0:02:50]}  Qxh2+ {[%clk 0:02:11]} 16. Ke1 {[%clk 0:02:48]}  Qxg3+ {[%clk 0:02:01]} 17. Kd2 {[%clk 0:02:48]}  Qxg4 {[%clk 0:01:59]} 18. Kc2 {[%clk 0:02:48]}  Qxc4 {[%clk 0:01:58]} 19. Qd3 {[%clk 0:02:45]}  Qc6 {[%clk 0:01:54]} 20. Bd2 {[%clk 0:02:42]}  Rc8 {[%clk 0:01:50]} 21. Rf1 {[%clk 0:02:40]}  e6 {[%clk 0:01:47]} 22. a3 {[%clk 0:02:35]}  d5 {[%clk 0:01:46]} 23. Kb1 {[%clk 0:02:33]}  h5 {[%clk 0:01:45]} 24. Qf3 {[%clk 0:02:25]}  Rc7 {[%clk 0:01:34]} 25. Rc1 {[%clk 0:02:13]}  Rb7 {[%clk 0:01:29]} 26. Rc2 {[%clk 0:02:04]}  Qa6 {[%clk 0:01:04]} 27. a4 {[%clk 0:01:51]}  Qc4 {[%clk 0:00:53]} 28. Nb5 {[%clk 0:01:29]}  Qxa4 {[%clk 0:00:49]} 29. Nd6 {[%clk 0:01:29]}  Rd7 {[%clk 0:00:40]} 30. Rc8+ {[%clk 0:01:28]}  Kh7 {[%clk 0:00:39]} 31. Nxf7 {[%clk 0:01:29]}  Rxf7 {[%clk 0:00:14]} 32. Qxf7 {[%clk 0:01:28]}  Qd1+ {[%clk 0:00:12]} 33. Bc1 {[%clk 0:01:28]}  Qxe2 {[%clk 0:00:12]} 34. Qg8# {[%clk 0:01:28]} 1-0


[Site "https://www.chess.com"]

[Event "Titled Tuesday Blitz May 23 Early 2023"]
[White "Marcziter, Dmitrii"]
[Black "Ezat, Mohamed"]
[WhiteFideId "13900765"]
[BlackFideId "10600906"]
[WhiteElo "2162"]
[BlackElo "2386"]
[Result "1-0"]
[Round "11"]
[TimeControl "180+2"]
[Date "2023.05.23"]
[WhiteClock "0:01:46"]
[BlackClock "0:01:37"]

1. d4 {[%clk 0:03:00]}  Nf6 {[%clk 0:02:58]} 2. c4 {[%clk 0:03:00]}  e6 {[%clk 0:02:58]} 3. Nf3 {[%clk 0:02:59]}  d5 {[%clk 0:02:58]} 4. Nc3 {[%clk 0:02:56]}  c6 {[%clk 0:02:53]} 5. e3 {[%clk 0:02:55]}  Nbd7 {[%clk 0:02:51]} 6. Qc2 {[%clk 0:02:54]}  Bd6 {[%clk 0:02:46]} 7. g4 {[%clk 0:02:52]}  Nxg4 {[%clk 0:02:40]} 8. Rg1 {[%clk 0:02:51]}  Qf6 {[%clk 0:02:36]} 9. Be2 {[%clk 0:02:46]}  Nxh2 {[%clk 0:02:32]} 10. Nxh2 {[%clk 0:02:45]}  Bxh2 {[%clk 0:02:30]} 11. Rg2 {[%clk 0:02:45]}  Bd6 {[%clk 0:02:28]} 12. Bd2 {[%clk 0:02:44]}  h5 {[%clk 0:02:25]} 13. O-O-O {[%clk 0:02:43]}  h4 {[%clk 0:02:24]} 14. f4 {[%clk 0:02:42]}  h3 {[%clk 0:02:23]} 15. Rh2 {[%clk 0:02:41]}  g5 {[%clk 0:02:17]} 16. Rdh1 {[%clk 0:02:25]}  gxf4 {[%clk 0:02:15]} 17. Rxh3 {[%clk 0:02:25]}  Rxh3 {[%clk 0:02:14]} 18. Rxh3 {[%clk 0:02:25]}  fxe3 {[%clk 0:02:13]} 19. Bxe3 {[%clk 0:02:25]}  Bf4 {[%clk 0:02:12]} 20. Qd2 {[%clk 0:02:23]}  Bxe3 {[%clk 0:02:10]} 21. Qxe3 {[%clk 0:02:23]}  Kd8 {[%clk 0:02:05]} 22. Rf3 {[%clk 0:02:19]}  Qg7 {[%clk 0:02:04]} 23. Rg3 {[%clk 0:02:13]}  Qf6 {[%clk 0:02:01]} 24. cxd5 {[%clk 0:02:08]}  exd5 {[%clk 0:01:59]} 25. Rf3 {[%clk 0:01:59]}  Qe7 {[%clk 0:01:56]} 26. Qf4 {[%clk 0:01:56]}  f6 {[%clk 0:01:42]} 27. Re3 {[%clk 0:01:56]}  Qg7 {[%clk 0:01:40]} 28. Bh5 {[%clk 0:01:49]}  Qg5 {[%clk 0:01:37]} 29. Re8# {[%clk 0:01:46]} 1-0


[Site "https://www.chess.com"]

[Event "Titled Tuesday Blitz May 23 Early 2023"]
[White "Staudenhocker43"]
[Black "Mazurkiewicz, Michal"]
[BlackFideId "1124943"]
[WhiteElo "2533"]
[BlackElo "2054"]
[Result "0-1"]
[Round "11"]
[TimeControl "180+2"]
[Date "2023.05.23"]
[WhiteClock "0:02:11"]
[BlackClock "0:02:48"]

1. d4 {[%clk 0:03:00]}  Nf6 {[%clk 0:02:59]} 2. Bg5 {[%clk 0:03:00]}  e6 {[%clk 0:02:59]} 3. e4 {[%clk 0:03:00]}  h6 {[%clk 0:02:59]} 4. Bxf6 {[%clk 0:03:00]}  Qxf6 {[%clk 0:03:00]} 5. c3 {[%clk 0:03:01]}  d6 {[%clk 0:03:00]} 6. Bd3 {[%clk 0:02:59]}  Qg5 {[%clk 0:03:00]} 7. g3 {[%clk 0:02:39]}  e5 {[%clk 0:03:00]} 8. Nd2 {[%clk 0:02:32]}  g6 {[%clk 0:02:59]} 9. Ne2 {[%clk 0:02:25]}  Bg7 {[%clk 0:02:58]} 10. Qc2 {[%clk 0:02:20]}  exd4 {[%clk 0:02:49]} 11. cxd4 {[%clk 0:02:20]}  Nc6 {[%clk 0:02:49]} 12. Bb5 {[%clk 0:02:11]}  Qxb5 {[%clk 0:02:48]} 0-1


[Site "https://www.chess.com"]

[Event "Titled Tuesday Blitz May 23 Early 2023"]
[White "Dishman, Stephen"]
[Black "Baches Garcia, Guillermo"]
[WhiteFideId "403024"]
[BlackFideId "2209764"]
[WhiteElo "2204"]
[BlackElo "2518"]
[Result "1/2-1/2"]
[Round "11"]
[TimeControl "180+2"]
[Date "2023.05.23"]
[WhiteClock "0:02:36"]
[BlackClock "0:02:11"]

1. c4 {[%clk 0:03:00]}  e6 {[%clk 0:02:59]} 2. g3 {[%clk 0:03:00]}  d5 {[%clk 0:02:59]} 3. Nf3 {[%clk 0:03:00]}  Nf6 {[%clk 0:02:58]} 4. d4 {[%clk 0:03:00]}  h6 {[%clk 0:02:58]} 5. Bg2 {[%clk 0:03:00]}  Bd6 {[%clk 0:02:58]} 6. O-O {[%clk 0:02:59]}  O-O {[%clk 0:02:58]} 7. b3 {[%clk 0:02:59]}  Nc6 {[%clk 0:02:48]} 8. Bb2 {[%clk 0:02:59]}  Re8 {[%clk 0:02:42]} 9. Nbd2 {[%clk 0:02:57]}  b6 {[%clk 0:02:38]} 10. Rc1 {[%clk 0:02:52]}  Bb7 {[%clk 0:02:37]} 11. Re1 {[%clk 0:02:36]}  Ne4 {[%clk 0:02:11]} 1/2-1/2


[Site "https://www.chess.com"]

[Event "Titled Tuesday Blitz May 23 Early 2023"]
[White "Ordekalog"]
[Black "Real_taiatai"]
[WhiteElo "2516"]
[BlackElo "2376"]
[Result "0-1"]
[Round "11"]
[TimeControl "180+2"]
[Date "2023.05.23"]
[WhiteClock "0:00:00"]
[BlackClock "0:00:23"]

1. e4 {[%clk 0:03:00]}  c5 {[%clk 0:02:57]} 2. d3 {[%clk 0:03:00]}  Nc6 {[%clk 0:02:57]} 3. g3 {[%clk 0:03:00]}  g6 {[%clk 0:02:58]} 4. Bg2 {[%clk 0:03:00]}  Bg7 {[%clk 0:02:59]} 5. f4 {[%clk 0:03:00]}  e5 {[%clk 0:03:00]} 6. Nf3 {[%clk 0:03:01]}  d6 {[%clk 0:03:00]} 7. O-O {[%clk 0:03:00]}  Nge7 {[%clk 0:03:01]} 8. f5 {[%clk 0:03:01]}  f6 {[%clk 0:03:01]} 9. Nh4 {[%clk 0:02:55]}  O-O {[%clk 0:03:00]} 10. g4 {[%clk 0:02:55]}  g5 {[%clk 0:02:52]} 11. Nf3 {[%clk 0:02:54]}  d5 {[%clk 0:02:53]} 12. h4 {[%clk 0:02:46]}  h6 {[%clk 0:02:52]} 13. hxg5 {[%clk 0:02:44]}  hxg5 {[%clk 0:02:53]} 14. Nbd2 {[%clk 0:02:40]}  Kf7 {[%clk 0:02:50]} 15. exd5 {[%clk 0:02:34]}  Nxd5 {[%clk 0:02:44]} 16. Ne4 {[%clk 0:02:34]}  b6 {[%clk 0:02:41]} 17. c4 {[%clk 0:02:09]}  Ndb4 {[%clk 0:02:36]} 18. Nfxg5+ {[%clk 0:01:47]}  fxg5 {[%clk 0:02:36]} 19. Nxg5+ {[%clk 0:01:35]}  Ke7 {[%clk 0:02:11]} 20. a3 {[%clk 0:01:30]}  Nxd3 {[%clk 0:02:10]} 21. Bxc6 {[%clk 0:01:25]}  Qd4+ {[%clk 0:02:09]} 22. Kg2 {[%clk 0:01:21]}  Bd7 {[%clk 0:00:43]} 23. Bxa8 {[%clk 0:00:49]}  Rxa8 {[%clk 0:00:42]} 24. Qf3 {[%clk 0:00:49]}  Bc6 {[%clk 0:00:29]} 25. f6+ {[%clk 0:00:00]}  Bxf6 {[%clk 0:00:23]} 0-1


[Site "https://www.chess.com"]

[Event "Titled Tuesday Blitz May 23 Early 2023"]
[White "Wagner, Dennis"]
[Black "Shubenkova, Veronika"]
[WhiteFideId "24650684"]
[BlackFideId "44124040"]
[WhiteElo "2478"]
[BlackElo "2060"]
[Result "1-0"]
[Round "11"]
[TimeControl "180+2"]
[Date "2023.05.23"]
[WhiteClock "0:00:12"]
[BlackClock "0:00:25"]

1. e4 {[%clk 0:03:00]}  e6 {[%clk 0:02:59]} 2. d4 {[%clk 0:03:00]}  d5 {[%clk 0:02:59]} 3. e5 {[%clk 0:03:01]}  c5 {[%clk 0:03:00]} 4. c3 {[%clk 0:03:02]}  Nc6 {[%clk 0:03:00]} 5. Nf3 {[%clk 0:03:02]}  a6 {[%clk 0:03:00]} 6. Be2 {[%clk 0:03:02]}  b5 {[%clk 0:03:01]} 7. O-O {[%clk 0:03:02]}  Qb6 {[%clk 0:03:01]} 8. Be3 {[%clk 0:02:52]}  Bb7 {[%clk 0:02:58]} 9. Nbd2 {[%clk 0:02:43]}  c4 {[%clk 0:02:57]} 10. Ne1 {[%clk 0:02:19]}  Nge7 {[%clk 0:02:55]} 11. g4 {[%clk 0:02:18]}  f6 {[%clk 0:02:45]} 12. Ng2 {[%clk 0:01:28]}  O-O-O {[%clk 0:02:37]} 13. f4 {[%clk 0:01:26]}  Kb8 {[%clk 0:02:29]} 14. b4 {[%clk 0:01:24]}  fxe5 {[%clk 0:02:20]} 15. fxe5 {[%clk 0:01:22]}  Ng6 {[%clk 0:02:19]} 16. h4 {[%clk 0:01:16]}  Be7 {[%clk 0:02:15]} 17. h5 {[%clk 0:01:17]}  Nh4 {[%clk 0:02:13]} 18. Nxh4 {[%clk 0:01:05]}  Bxh4 {[%clk 0:02:12]} 19. Nf3 {[%clk 0:01:05]}  Be7 {[%clk 0:02:02]} 20. a4 {[%clk 0:01:05]}  Na7 {[%clk 0:01:58]} 21. Qd2 {[%clk 0:01:03]}  h6 {[%clk 0:01:55]} 22. Kg2 {[%clk 0:01:01]}  Rdf8 {[%clk 0:01:54]} 23. Bf2 {[%clk 0:00:53]}  Qd8 {[%clk 0:01:52]} 24. Bg3 {[%clk 0:00:49]}  Bc6 {[%clk 0:01:40]} 25. axb5 {[%clk 0:00:48]}  Bxb5 {[%clk 0:01:40]} 26. Kh3 {[%clk 0:00:45]}  Bg5 {[%clk 0:01:36]} 27. Nxg5 {[%clk 0:00:42]}  hxg5 {[%clk 0:01:36]} 28. Kg2 {[%clk 0:00:40]}  Kb7 {[%clk 0:01:31]} 29. Bf2 {[%clk 0:00:28]}  Nc6 {[%clk 0:01:27]} 30. Be3 {[%clk 0:00:27]}  Qe8 {[%clk 0:01:23]} 31. Bxg5 {[%clk 0:00:27]}  g6 {[%clk 0:01:23]} 32. h6 {[%clk 0:00:27]}  Rh7 {[%clk 0:01:16]} 33. Rxf8 {[%clk 0:00:24]}  Qxf8 {[%clk 0:01:15]} 34. Rf1 {[%clk 0:00:24]}  Rf7 {[%clk 0:01:09]} 35. Rxf7+ {[%clk 0:00:19]}  Qxf7 {[%clk 0:01:10]} 36. Bf6 {[%clk 0:00:20]}  a5 {[%clk 0:01:05]} 37. bxa5 {[%clk 0:00:19]}  Nxa5 {[%clk 0:01:06]} 38. Bd1 {[%clk 0:00:19]}  Nb3 {[%clk 0:01:04]} 39. Qg5 {[%clk 0:00:19]}  Be8 {[%clk 0:01:01]} 40. Bc2 {[%clk 0:00:19]}  Na1 {[%clk 0:00:52]} 41. Bb1 {[%clk 0:00:18]}  Nb3 {[%clk 0:00:51]} 42. Bg7 {[%clk 0:00:19]}  Kc8 {[%clk 0:00:38]} 43. Qf6 {[%clk 0:00:19]}  Qa7 {[%clk 0:00:36]} 44. h7 {[%clk 0:00:17]}  Qa1 {[%clk 0:00:30]} 45. h8=Q {[%clk 0:00:15]}  Qb2+ {[%clk 0:00:25]} 46. Qf2 {[%clk 0:00:12]} 1-0


[Site "https://www.chess.com"]